[Event "Ceske Budejovice IM 2022"]
[Site "Ceske Budejovice"]
[Date "2022.07.09"]
[Round "9.4"]
[White "Bochnicka, Vladimir"]
[Black "Mirzoev, Azer"]
[Result "0-1"]
[ECO "C54"]
[WhiteElo "2295"]
[BlackElo "2424"]
[Annotator "RC"]
[PlyCount "108"]
[EventDate "2022.07.01"]
[EventType "tourn"]
[EventCountry "CZE"]
[SourceTitle "playchess.com"]
[Source "ChessBase"]
[SourceQuality "1"]
[TimeControl "40/5400+30:1800+30"]

1. e4 {[%emt 0:00:04]} e5 {[%emt 0:00:11]} 2. Nf3 {[%emt 0:00:06]} Nc6 {[%emt 0:00:08]} 3. Bc4 {[%emt 0:00:15]} Bc5 {[%emt 0:00:05]} 4. c3 {[%emt 0:00:05]} Nf6 {[%emt 0:00:04]} 5. d3 {[%emt 0:00:06]} d6 {[%emt 0:00:13]} 6. Bb3 {[%emt 0:00:30]} Bb6 {[%emt 0:00:10]} 7. Nbd2 {[%emt 0:01:39]} Ne7 {[%emt 0:02:23]} 8. Nf1 {[%emt 0:01:07]} Ng6 {[%emt 0:00:33]} 9. Ng3 {[%emt 0:00:28]} O-O {[%emt 0:00:07]} 10. O-O {[%emt 0:00:22]} h6 {[%emt 0:00:14]} 11. h3 {[%emt 0:02:20]} a5 {[%emt 0:00:16]} 12. Re1 {[%emt 0:02:34]} Bd7 {[%emt 0:00:21]} 13. a4 {[%emt 0:02:38]} Re8 {[%emt 0:00:28]} 14. d4 {[%emt 0:16:55]} Qc8 {[%emt 0:00:18]} 15. Bc2 {[%emt 0:04:48]} Bc6 {[%emt 0:05:28]} 16. Bd2 {[%emt 0:10:43]} Qd8 {[%emt 0:03:43]} 17. Qc1 {[%emt 0:03:14]} Bd7 {[%emt 0:02:32]} 18. Nf5 {[%emt 0:15:48]} exd4 {[%emt 0:06:02]} 19. cxd4 {[%emt 0:00:43]} Bxf5 {[%emt 0:01:20]} 20. exf5 {[%emt 0:00:03]} Nf8 {[%emt 0:00:07]} 21. Ra3 {[%emt 0:04:03]} Rxe1+ {[%emt 0:00:49]} 22. Qxe1 {[%emt 0:00:23]} c6 {[%emt 0:01:27]} 23. Qc1 {[%emt 0:12:36]} N8d7 {[%emt 0:05:36]} 24. Rd3 {[%emt 0:11:27]} Qf8 {[%emt 0:00:49]} 25. Qe1 {[%emt 0:01:43]} Nd5 {[%emt 0:01:41]} 26. Qe4 {[%emt 0:02:33]} Re8 {[%emt 0:01:23]} 27. Qh4 {[%emt 0:00:24]} N7f6 {[%emt 0:07:27]} 28. g4 {[%emt 0:03:08]} Bd8 {[%emt 0:01:36]} 29. g5 {[%emt 0:00:51]} Ne4 {[%emt 0:08:15]} 30. f6 {[%emt 0:00:06]} g6 {[%emt 0:00:13]} 31. Bc1 {[%emt 0:02:01]} hxg5 {[%emt 0:03:39]} 32. Nxg5 {[%emt 0:00:04]} Nxg5 {[%emt 0:04:55]} 33. Bxg5 {[%emt 0:00:05]} Nb4 {[%emt 0:03:58]} 34. Bb3 {[%emt 0:01:59]} d5 {[%emt 0:07:15]} 35. Rf3 {[%emt 0:00:03]} Re4 {[%emt 0:02:44]} 36. Rf4 {[%emt 0:00:04]} Rxf4 {[%emt 0:00:57]} 37. Bxf4 {[%emt 0:00:31]} Nd3 {[%emt 0:00:57]} 38. Be5 {[%emt 0:01:13]} Qb4 {[%emt 0:00:57]} 39. f4 {[%emt 0:01:41]} Nxe5 {[%emt 0:09:51]} 40. fxe5 {[%emt 0:00:07]} Qxb3 {[%emt 0:00:14]} 41. Qh6 {[%emt 0:05:22]} Qg3+ {[%emt 0:00:14]} 42. Kh1 {[%emt 0:00:12]} Qf3+ {[%emt 0:00:04]} 43. Kh2 {[%emt 0:00:12]} Bxf6 {[%emt 0:00:08]} 44. exf6 {[%emt 0:00:04]} Qxf6 {[%emt 0:00:07]} 45. Qd2 {[%emt 0:00:22]} b6 {[%emt 0:00:10]} 46. Kg2 {[%emt 0:00:49]} Qd6 {[%emt 0:00:06]} 47. b3 {[%emt 0:02:51]} c5 {[%emt 0:00:26]} 48. h4 {[%emt 0:02:55]} cxd4 {[%emt 0:00:43]} 49. Qxd4 {[%emt 0:00:05]} Qc5 {[%emt 0:00:10]} 50. Qd3 {[%emt 0:01:41]} d4 {[%emt 0:00:19]} 51. Qe4 {[%emt 0:00:33]} Kg7 {[%emt 0:00:22]} 52. Kh1 {[%emt 0:02:07]} Qd6 {[%emt 0:00:22]} 53. h5 {[%emt 0:01:04]} d3 {[%emt 0:00:43]} 54. hxg6 {[%emt 0:00:34]} d2 {[%emt 0:01:12]} 0-1

[Event "Ceske Budejovice IM 2022"]
[Site "Ceske Budejovice"]
[Date "2022.07.09"]
[Round "9.5"]
[White "Dev, Shah"]
[Black "Nagy, Ladislav"]
[Result "1-0"]
[ECO "E04"]
[WhiteElo "2292"]
[BlackElo "2209"]
[Annotator "RC"]
[PlyCount "79"]
[EventDate "2022.07.01"]
[EventType "tourn"]
[EventCountry "CZE"]
[SourceTitle "playchess.com"]
[Source "ChessBase"]
[SourceQuality "1"]
[TimeControl "40/5400+30:1800+30"]

1. d4 {[%emt 0:03:41]} Nf6 {[%emt 0:00:08]} 2. c4 {[%emt 0:00:04]} e6 {[%emt 0:00:07]} 3. Nf3 {[%emt 0:00:06]} d5 {[%emt 0:00:11]} 4. g3 {[%emt 0:00:05]} dxc4 {[%emt 0:00:28]} 5. Bg2 {[%emt 0:00:22]} Nc6 {[%emt 0:00:22]} 6. Qa4 {[%emt 0:00:05]} Bb4+ {[%emt 0:01:06]} 7. Bd2 {[%emt 0:00:09]} Nd5 {[%emt 0:01:12]} 8. Qc2 {[%emt 0:00:06]} Nb6 {[%emt 0:06:58]} 9. O-O {[%emt 0:05:33]} Bxd2 {[%emt 0:14:45]} 10. Qxd2 {[%emt 0:01:05]} O-O {[%emt 0:03:38]} 11. e4 {[%emt 0:01:33]} Qe7 {[%emt 0:03:17]} 12. Na3 {[%emt 0:04:51]} f6 {[%emt 0:24:05]} 13. Rac1 {[%emt 0:02:54]} Qb4 {[%emt 0:05:57]} 14. Nxc4 {[%emt 0:08:29]} Nxc4 {[%emt 0:01:25]} 15. Qxb4 {[%emt 0:00:15]} Nxb4 {[%emt 0:00:04]} 16. Rxc4 {[%emt 0:00:08]} Na6 {[%emt 0:00:31]} 17. a4 {[%emt 0:02:30]} Bd7 {[%emt 0:02:41]} 18. Rfc1 {[%emt 0:01:55]} Rac8 {[%emt 0:05:33]} 19. Nd2 {[%emt 0:13:00]} e5 {[%emt 0:03:14]} 20. Nb3 {[%emt 0:00:33]} Rf7 {[%emt 0:16:17]} 21. Bf1 {[%emt 0:14:04]} Kf8 {[%emt 0:03:31]} 22. d5 {[%emt 0:06:43]} Ke8 {[%emt 0:04:49]} 23. Na5 {[%emt 0:02:48]} b6 {[%emt 0:00:24]} 24. Nc6 {[%emt 0:00:26]} Bxc6 {[%emt 0:00:45]} 25. Rxc6 {[%emt 0:00:24]} Nb4 {[%emt 0:00:46]} 26. R6c4 {[%emt 0:01:30]} a5 {[%emt 0:00:20]} 27. Bh3 {[%emt 0:00:08]} Kd8 {[%emt 0:00:43]} 28. Be6 {[%emt 0:00:24]} Rd7 {[%emt 0:00:11]} 29. Bxd7 {[%emt 0:04:52]} Kxd7 {[%emt 0:00:02]} 30. Rd1 {[%emt 0:00:17]} Na6 {[%emt 0:00:52]} 31. f4 {[%emt 0:00:21]} Re8 {[%emt 0:00:43]} 32. Kf2 {[%emt 0:03:54]} Nc5 {[%emt 0:00:09]} 33. Kf3 {[%emt 0:00:06]} Kd6 {[%emt 0:01:02]} 34. b4 {[%emt 0:00:19]} axb4 {[%emt 0:00:16]} 35. Rxb4 {[%emt 0:00:00]} Ra8 {[%emt 0:00:14]} 36. fxe5+ {[%emt 0:00:36]} fxe5 {[%emt 0:00:38]} 37. Ra1 {[%emt 0:00:57]} Ra5 {[%emt 0:00:23]} 38. Ke3 {[%emt 0:00:43]} Ke7 {[%emt 0:00:50]} 39. g4 {[%emt 0:05:50]} g6 {[%emt 0:00:49]} 40. g5 {[%emt 0:00:26]} 1-0